bitfinex-derivatives/quotes_ETHF0:USTF0_20250708
["timestamp","ask_amount","ask_price","bid_price","bid_amount"]
[1752003394277,0.76783,2604.4,2604.3,0.76785]
[1752003394476,0.76787,2604.3,2604.2,1.44636]
[1752003395273,0.76787,2604.3,2604.2,1.44906]
[1752003395274,1.39957,2604.3,2604.2,1.44906]
[1752003395473,1.39957,2604.3,2604.2,1.44636]
[1752003395874,3.2078,2604.5,2604.4,0.76782]
[1752003396178,4.60731,2604.5,2604.4,0.76782]
[1752003396373,4.60731,2604.5,2604.4,0.77052]
[1752003396572,4.60731,2604.5,2604.4,0.76782]
[1752003396773,4.60731,2604.5,2604.4,0.77052]
[1752003397475,4.60731,2604.5,2604.4,0.0027]
[1752003397674,4.60731,2604.5,2604.4,0.77052]
[1752003398075,5.57481,2604.5,2604.4,0.77052]
[1752003398276,5.57481,2604.5,2604.4,0.0027]
[1752003398472,0.76782,2604.4,2604.3,0.76783]
[1752003398775,2.36702,2604.4,2604.3,0.76783]
[1752003398967,2.36702,2604.4,2604.3,0.77053]
[1752003400475,1.5992,2604.4,2604.3,0.77053]
[1752003401276,2.36702,2604.4,2604.3,0.77053]
[1752003401479,1.39952,2604.4,2604.3,0.77053]
[1752003401778,5.11268158,2604.4,2604.3,0.77053]
[1752003404376,4.34486158,2604.4,2604.1,0.76787]
[1752003404676,0.7679,2604.2,2604.1,0.76787]
[1752003404877,1.3996,2604.2,2604.1,0.76787]
[1752003405076,2.3671,2604.2,2604.1,0.77057]
[1752003405382,2.3671,2604.2,2604.1,0.76787]
[1752003405582,2.36708,2604.2,2604.1,0.76787]
[1752003406078,0.76794,2604.1,2603.9,3.2078]
[1752003406383,1.73544,2604.1,2604.0,0.76794]
[1752003406780,2.36714,2604.1,2604.0,0.77064]
[1752003406982,1.5992,2604.1,2604.0,0.77064]
[1752003407174,2.36711,2604.1,2604.0,0.77064]
[1752003407880,1.5992,2604.1,2604.0,0.77064]
[1752003408775,2.36711,2604.1,2604.0,0.76794]
[1752003410886,1.5992,2604.1,2604.0,0.76794]
[1752003411086,0.6317,2604.1,2604.0,0.76794]
[1752003411284,4.1753,2604.5,2604.3,0.76783]
[1752003411485,3.95093393,2604.4,2604.3,0.76783]
[1752003411686,0.76786,2604.3,2604.2,0.76785]
[1752003411889,2.98344393,2604.3,2604.2,0.76785]
[1752003412089,3.95094393,2604.3,2604.2,0.76785]
[1752003412589,3.18308393,2604.3,2604.2,0.76785]
[1752003412789,3.95093393,2604.3,2604.2,0.76785]
[1752003413687,6.69659551,2604.3,2604.2,0.76785]
[1752003414590,5.92874551,2604.3,2604.2,0.76785]
[1752003414883,6.69659551,2604.3,2604.2,0.76785]
[1752003415082,6.73979551,2604.3,2604.2,0.76785]
[1752003415690,3.22628393,2604.3,2604.2,0.76785]
[1752003415885,2.21558393,2604.3,2604.2,0.76785]
[1752003416690,1.52958393,2604.3,2604.2,0.76785]
[1752003416993,1.52991898,2604.4,2604.1,1.91974]
[1752003417190,1.52991898,2604.3,2604.2,0.76788]
[1752003417585,3.84,2607.4,2604.2,0.76788]
[1752003417586,1.0107,2604.9,2604.8,0.7677]
[1752003417791,53.872,2605.0,2604.9,0.76767]
[1752003418189,56.33634,2605.0,2604.9,0.76767]
[1752003418389,55.5687,2605.0,2604.9,0.76767]
[1752003418988,0.686,2605.0,2604.9,0.76767]
[1752003419991,30.1278,2605.2,2605.1,0.76761]
[1752003420191,3.8938,2605.2,2605.1,0.76761]
[1752003420389,0.686,2605.2,2605.1,0.76761]
[1752003420691,4.42832233,2605.7,2605.6,0.76747]
[1752003421090,5.11432233,2605.7,2605.6,0.76747]
[1752003421292,1.6967,2605.7,2605.6,0.76747]
[1752003422286,3.2078,2605.9,2605.8,0.76741]
[1752003422493,3.8938,2605.9,2605.8,0.76741]
[1752003423692,0.686,2605.9,2605.8,0.76741]
[1752003424090,0.29450399,2606.0,2605.9,0.76738]
[1752003424295,0.98050399,2606.0,2605.9,0.76738]
[1752003424788,0.686,2606.0,2605.9,0.76738]
[1752003424994,3.51298158,2606.1,2606.0,0.76735]
[1752003425294,3.43166158,2606.1,2606.0,0.76735]
[1752003425498,4.44236158,2606.1,2606.0,0.76735]
[1752003425690,1.6967,2606.1,2606.0,0.76735]
[1752003425994,0.686,2606.1,2606.0,0.76735]
[1752003426196,0.686,2606.1,2606.0,1.42645]
[1752003426786,3.2078,2606.3,2606.2,0.76729]
[1752003426990,1.0107,2606.8,2606.5,0.7672]
[1752003427193,0.686,2606.7,2606.6,0.76717]
[1752003428397,0.686,2606.7,2606.6,1.44417]
[1752003430295,1.6967,2606.7,2606.6,1.44417]
[1752003430698,0.686,2606.7,2606.6,1.44417]
[1752003433001,1.6967,2606.7,2606.6,1.44417]
[1752003434091,2.46387,2606.7,2606.6,0.76717]
[1752003434806,3.85447,2606.7,2606.6,0.76717]
[1752003435994,3.0873,2606.7,2606.6,0.76717]
[1752003436201,0.686,2606.7,2606.6,0.76717]
[1752003436604,0.686,2606.7,2606.6,1.41767]
[1752003437101,0.686,2606.7,2606.6,2.69577]
[1752003437496,83.91073,2607.1,2607.0,0.76705]
[1752003437693,1.0107,2607.1,2607.0,0.76705]
[1752003437903,0.686,2607.1,2607.0,0.76705]
[1752003438601,1.0107,2607.3,2607.2,0.76699]
[1752003438802,0.686,2607.3,2607.2,0.76699]
[1752003439594,2.46537,2607.7,2607.6,0.76688]
[1752003439801,3.15137,2607.7,2607.6,0.76688]
[1752003440003,4.53677,2607.7,2607.6,0.76688]
[1752003440208,3.7699,2607.7,2607.6,0.76688]
[1752003440504,4.53675,2607.7,2607.6,0.76688]
[1752003440704,0.76688,2607.6,2607.5,0.76688]
[1752003440904,3.0825,2607.6,2607.5,0.76688]
[1752003441200,3.84938,2607.6,2607.5,0.76688]
[1752003441704,3.0825,2607.6,2607.5,0.76688]
[1752003442306,3.84938,2607.6,2607.5,0.76688]
[1752003443008,3.0825,2607.6,2607.5,0.76688]
[1752003443611,3.84938,2607.6,2607.5,0.76688]
[1752003444108,2.83868,2607.6,2607.5,0.76688]
[1752003444307,3.82208,2607.6,2607.5,0.76688]
[1752003445709,0.76694,2607.5,2607.4,0.76691]
[1752003446009,2.43674,2607.5,2607.4,0.76691]
[1752003446202,2.43674,2607.5,2607.2,0.76698]
[1752003446203,0.76699,2607.3,2607.2,0.76698]
[1752003446408,2.43679,2607.3,2607.2,0.76698]
[1752003446709,1.6698,2607.3,2607.2,0.76698]
[1752003447110,0.76705,2607.1,2607.0,0.76703]
[1752003447306,4.19911158,2607.1,2607.0,0.76703]
[1752003447612,5.18251158,2607.1,2607.0,0.76703]
[1752003447811,0.7671,2606.9,2606.6,3.8913]
[1752003448002,0.6864,2606.7,2606.6,4.65847]
[1752003449012,1.6698,2606.7,2606.6,1.45067]
[1752003450411,2.43694,2606.7,2606.6,1.45067]
[1752003452015,1.6698,2606.7,2606.6,1.45067]
[1752003453214,3.17139619,2606.7,2606.6,1.45067]
[1752003454415,3.93853619,2606.7,2606.6,1.45067]
[1752003455012,3.17139619,2606.7,2606.6,1.45067]
[1752003456012,1.50159619,2606.7,2606.6,1.45067]
[1752003456313,3.2078,2606.9,2606.8,0.76711]
[1752003456508,2.190068,2606.9,2606.7,4.5697]
[1752003456712,0.6864,2606.9,2606.7,4.5697]
[1752003457014,0.6864,2606.9,2606.8,0.76711]
[1752003457220,3.17456198,2606.9,2606.8,0.76711]
[1752003457407,2.19116198,2606.9,2606.8,0.76711]
[1752003458209,0.6864,2606.9,2606.8,0.76711]
[1752003458414,3.2078,2607.3,2607.2,0.76699]
[1752003458716,1.50513402,2607.3,2607.2,0.76699]
[1752003459417,3.2078,2607.6,2607.5,0.76691]
[1752003459617,5.39960677,2607.6,2607.5,0.76691]
[1752003461614,4.71320677,2607.6,2607.5,0.76691]
[1752003461818,4.40102233,2608.0,2607.9,0.76679]
[1752003461819,0.9834,2608.0,2607.9,0.76679]
[1752003462012,1.6698,2608.0,2607.9,0.76679]
[1752003463311,1.6698,2608.0,2607.9,2.12789]
[1752003463510,2.3586,2608.4,2608.3,0.76667]
[1752003463713,1.6698,2608.4,2608.3,0.76667]
[1752003465022,56.02255,2608.7,2608.6,0.76658]
[1752003465219,1.74995,2608.7,2608.6,0.76658]
[1752003465419,1.6698,2608.7,2608.6,0.76658]
[1752003466925,2.43635,2608.7,2608.6,0.76658]
[1752003467326,3.73485,2608.7,2608.6,0.76658]
[1752003467924,2.9683,2608.7,2608.4,3.2078]
[1752003468126,2.9683,2608.7,2608.5,0.76659]
[1752003468127,0.76658,2608.6,2608.5,0.76659]
[1752003468428,3.73487,2608.7,2608.6,0.76658]
[1752003468629,1.6698,2608.7,2608.6,0.76658]
[1752003468831,2.43635,2608.7,2608.6,0.76658]
[1752003469730,0.7666,2608.6,2608.5,0.76659]
[1752003470129,2.4364,2608.6,2608.5,0.76659]
[1752003470331,1.6698,2608.6,2608.5,0.76659]
[1752003470528,2.43638,2608.6,2608.5,0.76659]
[1752003470833,0.76661,2608.5,2608.4,3.2078]
[1752003471125,2.38931,2608.5,2608.4,3.97444]
[1752003471432,0.76667,2608.4,2608.3,0.76667]
[1752003472924,2.02877,2608.4,2608.3,0.76667]
[1752003473534,0.76671,2608.3,2608.2,0.76667]
[1752003473729,1.6227,2608.5,2608.4,0.76664]
[1752003474734,26.71,2608.6,2608.5,0.76661]
[1752003475035,0.6393,2608.6,2608.5,0.76661]
[1752003475334,1.6009,2608.6,2608.5,0.76661]
[1752003475536,0.76664,2608.5,2608.1,3.2078]
[1752003475733,0.76664,2608.5,2608.4,0.76664]
[1752003475935,2.08334,2608.5,2608.4,0.76664]
[1752003476436,3.68424,2608.5,2608.4,0.76664]
[1752003476630,0.76667,2608.4,2608.3,0.76666]
[1752003476834,2.36757,2608.4,2608.3,0.76666]
[1752003479735,1.6009,2608.4,2608.1,3.2078]
[1752003479936,1.40596,2608.4,2608.3,0.76667]
[1752003480437,1.40598,2608.4,2608.3,0.76667]
[1752003480638,2.36758,2608.4,2608.3,0.76667]
[1752003482536,0.7667,2608.2,2608.1,3.2078]
[1752003482740,5.11326158,2608.2,2608.1,3.2078]
[1752003483039,5.11326158,2608.2,2607.4,0.6885]
[1752003483040,1.9169,2608.0,2607.5,3.2078]
[1752003483239,0.76685,2607.8,2607.7,0.76683]
[1752003483441,0.76687,2607.7,2607.6,0.76685]
[1752003483638,1.40617,2607.7,2607.5,3.2078]
[1752003483839,0.9616,2608.2,2607.5,8.2078]
[1752003484142,0.9616,2608.2,2608.1,3.97453]
[1752003484143,0.6393,2608.2,2608.1,3.97453]
[1752003484341,0.9616,2608.6,2608.1,3.97453]
[1752003484536,0.9616,2608.6,2608.5,3.2078]
[1752003484734,2.36748,2608.6,2608.5,3.2078]
[1752003484940,2.36748,2608.6,2608.5,0.76661]
[1752003485137,30.66376,2608.9,2608.2,5.81304]
[1752003485442,0.76658,2608.6,2608.5,0.76659]
[1752003485635,2.36748,2608.6,2608.5,0.76659]
[1752003485836,1.6009,2608.6,2608.5,0.76659]
[1752003487141,0.6393,2608.6,2608.5,0.76659]
[1752003487741,0.6393,2608.6,2608.5,3.97439]
[1752003490145,3.2078,2609.0,2608.9,0.76649]
[1752003490345,6.29613797,2609.0,2608.9,0.76649]
[1752003492338,2.12673797,2609.0,2608.9,0.76649]
[1752003493439,3.85482797,2609.0,2608.8,1.4606]
[1752003493747,3.85482797,2609.0,2608.5,3.2078]
[1752003493748,0.76655,2608.8,2608.5,3.2078]
[1752003493949,0.76655,2608.8,2608.7,0.76654]
[1752003494245,2.89351608,2608.8,2608.7,0.76654]
[1752003494443,3.85511608,2608.8,2608.7,0.76654]
[1752003495049,2.25421608,2608.8,2608.7,0.76654]
[1752003495243,3.85511608,2608.8,2608.7,0.76654]
[1752003497645,2.12696608,2608.8,2608.7,0.76654]
[1752003499548,1.62696608,2608.8,2608.7,0.76654]
[1752003500052,2.58856608,2608.8,2608.7,0.76654]
[1752003505158,2.65256608,2608.8,2608.7,0.76654]
[1752003507356,3.41908608,2608.8,2608.7,0.76654]
[1752003507856,2.65256608,2608.8,2608.7,0.76654]
[1752003509057,3.41908608,2608.8,2608.7,0.76654]
[1752003509258,0.76658,2608.7,2608.6,0.76656]
[1752003509457,4.40521436,2608.7,2608.6,0.76656]
[1752003509661,5.03311436,2608.7,2608.6,0.76656]
[1752003510257,5.03311436,2608.7,2608.4,0.76662]
[1752003510258,4.26653436,2608.7,2608.4,0.76662]
[1752003510455,0.76667,2608.3,2608.2,0.76669]
[1752003510657,2.98193436,2608.3,2608.2,0.76669]
[1752003511062,2.43157,2608.3,2608.2,0.76669]
[1752003511361,3.71617,2608.3,2608.2,0.76669]
[1752003511860,0.76671,2608.2,2608.1,0.7667]
[1752003512060,2.43161,2608.2,2608.1,0.7667]
[1752003512366,2.9924,2608.2,2608.1,0.7667]
[1752003512557,3.7591,2608.2,2608.1,0.7667]
[1752003512757,2.9924,2608.2,2608.1,0.7667]
[1752003513161,3.7591,2608.2,2608.1,0.7667]
[1752003514762,5.23391868,2608.2,2608.1,0.7667]
[1752003515363,3.7591,2608.2,2608.1,0.7667]
[1752003515864,2.9924,2608.2,2608.1,0.7667]
[1752003518668,37.40814606,2608.2,2606.8,8.02829093]
[1752003518857,5.94854606,2607.5,2606.9,4.58759481]
[1752003519066,0.6279,2607.0,2606.9,1.41688]
[1752003519568,0.6279,2607.0,2606.9,0.76708]
[1752003519966,0.6279,2607.0,2606.9,1.41688]
[1752003521173,0.76694,2607.4,2607.3,0.76696]
[1752003521364,1.39484,2607.4,2607.3,0.6498]
[1752003521868,2.43184,2607.4,2607.3,0.6498]
[1752003522464,0.6279,2607.4,2607.3,1.41676]
[1752003523667,3.2078,2607.5,2607.4,0.76693]
[1752003523868,3.8357,2607.5,2607.4,1.41673]
[1752003525172,3.8357,2607.5,2607.4,0.76693]
[1752003525370,3.8357,2607.5,2607.4,1.41673]
[1752003526472,4.2448,2607.8,2607.7,0.76685]
[1752003526674,6.34575934,2607.8,2607.3,1.91735]
[1752003526869,1.037,2607.7,2607.3,3.23895]
[1752003527172,1.6649,2607.7,2607.6,1.41668]
[1752003527373,0.6279,2607.7,2607.6,1.41668]
[1752003528369,0.6279,2607.7,2607.3,3.2078]
[1752003528370,1.6649,2607.7,2607.3,3.2078]
[1752003528574,0.76695,2607.4,2607.1,0.6897]
[1752003528770,0.6279,2607.2,2607.1,1.3395]
[1752003528970,0.6279,2607.2,2607.1,1.45672]
[1752003529375,0.6279,2607.2,2607.1,2.10652]
[1752003529572,0.6279,2607.2,2607.1,1.45672]
[1752003529773,1.39489,2607.2,2607.1,2.10652]
[1752003530074,2.43189,2607.2,2607.1,0.6897]
[1752003530276,0.76703,2607.1,2607.0,0.76703]
[1752003530571,0.76709,2606.9,2606.5,5.12576]
[1752003530775,0.76709,2606.9,2606.8,0.76709]
[1752003531075,1.44839,2606.9,2606.8,0.76709]
[1752003531277,0.6813,2606.9,2606.8,1.42679]
[1752003531673,0.6813,2606.9,2606.8,0.76709]
[1752003531874,0.6813,2606.9,2606.8,1.42679]
[1752003532277,1.7183,2606.9,2606.8,1.42679]
[1752003532870,2.48538,2606.9,2606.8,1.42679]
[1752003533182,0.76712,2606.8,2606.7,0.76712]
[1752003533375,2.39572,2606.8,2606.7,0.76712]
[1752003533680,1.6286,2606.8,2606.7,1.42682]
[1752003534679,2.39571,2606.8,2606.7,1.42682]
[1752003534880,1.6286,2606.8,2606.7,1.42682]
[1752003535080,0.7671,2606.9,2606.8,0.76711]
[1752003535384,1.4484,2606.9,2606.8,0.76711]
[1752003535884,0.76717,2606.6,2606.5,3.2078]
[1752003536079,0.76722,2606.5,2606.4,0.76721]
[1752003536690,0.76722,2606.5,2606.2,1.45045]
[1752003536691,0.76726,2606.3,2606.2,1.45045]
[1752003536989,0.76726,2606.3,2606.2,0.76725]
[1752003537189,3.50800606,2606.3,2606.2,0.76725]
[1752003537389,2.74074606,2606.3,2606.2,0.76725]
[1752003537780,3.50800606,2606.3,2606.2,0.76725]
[1752003537984,4.81620606,2606.3,2606.2,0.76725]
[1752003538593,4.04894606,2606.3,2606.2,0.76725]
[1752003539682,5.67754606,2606.3,2606.2,0.76725]
[1752003539888,6.44480606,2606.3,2606.2,0.76725]
[1752003540192,1.6286,2606.3,2606.2,1.42695]
[1752003540380,0.6813,2606.3,2606.2,1.42695]
[1752003540894,0.9473,2606.8,2606.7,0.76714]
[1752003541188,1.6286,2606.8,2606.7,0.76714]
[1752003542587,1.6286,2606.8,2606.5,0.76719]
[1752003542793,5.94854606,2606.6,2606.5,0.76719]
[1752003543589,12.86653606,2606.6,2606.2,0.76728]
[1752003543794,0.76724,2606.4,2606.3,0.76724]
[1752003544385,2.39584,2606.4,2606.3,0.76724]
[1752003544587,2.39584,2606.4,2606.3,1.42694]
[1752003544588,1.6286,2606.4,2606.3,1.42694]
[1752003544987,0.9473,2606.4,2606.3,1.42694]
[1752003545186,4.92228,2606.6,2606.5,0.7672]
[1752003545387,6.40130841,2606.6,2606.5,0.7672]
[1752003545591,7.08260841,2606.6,2606.3,0.6597]
[1752003545791,7.57714606,2606.6,2606.3,0.6597]
[1752003546096,2.3058,2606.5,2606.4,0.7672]
[1752003546488,2.9871,2606.5,2606.4,0.7672]
[1752003547396,5.23422894,2606.5,2606.4,0.7672]
[1752003547590,0.76723,2606.4,2606.3,0.6597]
[1752003547790,2.12573,2606.4,2606.3,0.6597]
[1752003548192,2.12573,2606.4,2606.3,1.42696]
[1752003548993,3.60600522,2606.4,2606.3,1.42696]
[1752003549496,0.7673,2606.3,2606.2,0.76727]
[1752003549689,3.53617522,2606.3,2606.2,0.76727]
[1752003550586,1.48027522,2606.3,2606.2,0.76727]
[1752003550992,0.76726,2606.3,2606.2,0.76727]
[1752003551289,2.39586,2606.3,2606.2,0.76727]
[1752003551686,1.6286,2606.3,2606.2,1.42697]
[1752003551886,0.6813,2606.3,2606.2,1.42697]
[1752003552194,0.6813,2606.3,2606.2,0.76727]
[1752003552696,0.6813,2606.3,2606.2,1.42697]
[1752003553895,1.44856,2606.3,2606.2,1.42697]
[1752003554092,0.6813,2606.3,2606.2,1.42697]
[1752003554493,1.44856,2606.3,2606.2,1.42697]
[1752003554695,0.6813,2606.3,2606.2,1.42697]
[1752003554895,1.44856,2606.3,2606.2,1.42697]
[1752003555092,1.44856,2606.3,2606.2,0.76727]
[1752003555495,1.44856,2606.3,2606.2,1.42697]
[1752003555896,0.6813,2606.3,2606.2,1.42697]
[1752003556293,3.975,2606.6,2606.5,0.7672]
[1752003556598,0.7672,2606.5,2606.4,0.7672]
[1752003556792,2.17278447,2606.5,2606.4,0.7672]
[1752003557194,2.17278447,2606.5,2606.4,1.4269]
[1752003557498,1.4485,2606.5,2606.4,0.7672]
[1752003557689,1.6286,2606.5,2606.4,1.4269]
[1752003557893,0.6813,2606.5,2606.4,1.4269]
[1752003560497,1.6286,2606.5,2606.4,1.4269]
[1752003561301,0.6813,2606.5,2606.4,1.4269]
[1752003562998,3.2078,2606.6,2606.5,0.7672]
[1752003563304,5.38528424,2606.6,2606.5,0.7672]
[1752003563506,5.38528424,2606.6,2606.5,1.3946]
[1752003563800,0.76723,2606.5,2606.4,0.7672]
[1752003564004,3.73311062,2606.5,2606.4,0.7672]
[1752003565208,2.96588062,2606.5,2606.4,0.7672]
[1752003565800,2.96588062,2606.5,2606.4,1.3946]
[1752003566405,1.6465,2606.5,2606.4,0.7672]
[1752003566605,1.6465,2606.5,2606.4,1.3946]
[1752003569306,3.14160026,2606.5,2606.4,1.3946]
[1752003570016,3.14191383,2606.5,2606.4,1.3946]
[1752003572810,4.46129445,2606.5,2606.4,1.3946]
[1752003574510,2.96588062,2606.5,2606.4,1.3946]
[1752003574710,4.46223689,2606.5,2606.4,1.3946]
[1752003575210,5.22943689,2606.5,2606.4,1.3946]
[1752003575410,5.22943689,2606.5,2606.4,0.76723]
[1752003575610,6.38026689,2606.5,2606.0,0.6509]
[1752003575802,2.08669062,2606.2,2606.0,0.6509]
[1752003576007,2.08669062,2606.2,2606.1,0.76732]
[1752003576311,2.77249062,2606.2,2606.1,0.76732]
[1752003576608,0.76732,2606.1,2606.0,1.41822]
[1752003577013,0.76735,2606.0,2605.9,0.76736]
[1752003577217,2.08673062,2606.0,2605.9,0.76736]
[1752003578309,2.08673062,2606.0,2605.7,3.2078]
[1752003578310,2.63876124,2606.0,2605.7,3.2078]
[1752003578613,0.76747,2605.6,2605.5,0.76747]
[1752003578807,0.7675,2605.5,2605.4,0.7675]
[1752003579002,0.76752,2605.4,2605.3,0.6507]
[1752003579207,0.76757,2605.3,2605.2,0.76757]
[1752003579406,2.08695062,2605.3,2605.2,0.76757]
[1752003579606,2.08695062,2605.3,2605.1,0.7676]
[1752003579607,0.7676,2605.2,2605.1,0.7676]
[1752003579810,2.96588062,2605.3,2605.0,0.76762]
[1752003580013,1.31938062,2605.1,2604.9,3.8585]
[1752003580311,1.31938062,2605.1,2605.0,0.76764]
[1752003580810,1.31938062,2605.1,2605.0,1.39504]
[1752003581014,1.31938062,2605.1,2605.0,0.76764]
[1752003581419,2.96588062,2605.1,2605.0,1.39504]
[1752003583120,2.96588062,2605.1,2605.0,0.76764]
[1752003583709,3.73349062,2605.1,2605.0,0.76764]
[1752003584113,2.96588062,2605.1,2605.0,0.76764]
[1752003584319,2.00518062,2605.1,2605.0,0.76764]
[1752003584518,2.00518062,2605.1,2605.0,1.39504]
[1752003585120,2.00518062,2605.1,2605.0,0.76764]
[1752003585319,4.52718062,2605.4,2605.3,0.76755]
[1752003585619,6.17368062,2605.4,2605.3,0.76755]
[1752003587012,1.6465,2605.4,2605.3,0.76755]
[1752003587212,32.95232062,2605.7,2605.6,0.76746]
[1752003587418,33.63812062,2605.7,2605.6,0.76746]
[1752003587921,34.92732062,2605.7,2605.6,0.76746]
[1752003588116,6.17368062,2605.7,2605.6,0.76746]
[1752003588621,2.96588062,2605.7,2605.6,0.76746]
[1752003589023,2.00518062,2605.7,2605.6,0.76746]
[1752003589217,2.00518062,2605.7,2605.6,1.39486]
[1752003590025,0.9607,2605.9,2605.8,0.76741]
[1752003590226,3.133678,2605.9,2605.8,0.76741]
[1752003590522,2.172978,2605.9,2605.8,0.76741]
[1752003590824,2.172978,2605.9,2605.8,1.44681]
[1752003590825,0.6858,2605.9,2605.8,1.44681]
[1752003592332,3.2078,2606.0,2605.9,0.76738]
[1752003592529,3.9003,2606.0,2605.9,1.44678]
[1752003593032,3.9003,2606.0,2605.9,0.76738]
[1752003593329,28.01538062,2606.3,2606.2,0.76729]
[1752003593330,3.2078,2606.3,2606.2,0.76729]
[1752003593530,5.38773765,2606.3,2606.2,0.76729]
[1752003594433,6.15499765,2606.3,2606.2,0.76729]
[1752003594934,4.66756,2606.3,2606.2,0.76729]
[1752003595122,5.65806,2606.3,2606.2,0.76729]
[1752003596131,4.8908,2606.3,2606.2,0.76729]
[1752003597133,4.8908,2606.3,2606.2,1.44669]
[1752003597333,5.65806,2606.3,2606.2,0.76729]
[1752003598528,0.76731,2606.2,2606.1,0.76731]
[1752003598729,0.76732,2606.1,2606.0,1.44923]
[1752003598925,3.00238062,2606.2,2606.1,0.76732]
[1752003598926,2.08669062,2606.2,2606.1,0.76732]
[1752003599130,2.77919062,2606.2,2606.1,0.76732]
[1752003599732,3.76969062,2606.2,2606.1,0.76732]
[1752003599935,3.76969062,2606.2,2606.1,1.44672]
[1752003600129,3.00238062,2606.2,2606.1,0.76732]
[1752003600331,3.76967062,2606.2,2606.1,0.76732]
[1752003600735,3.76967062,2606.2,2606.1,1.44672]
[1752003601427,3.00238062,2606.2,2606.1,1.44672]
[1752003602335,0.76732,2606.1,2606.0,0.6819]
[1752003602530,0.76732,2606.1,2605.7,1.91858]
[1752003602531,2.45032,2606.1,2605.7,1.91858]
[1752003602736,1.31938062,2605.9,2605.8,0.76741]
[1752003602935,2.01188062,2605.9,2605.8,0.76741]
[1752003603239,0.6925,2605.9,2605.8,1.44681]
[1752003605137,1.31938062,2606.1,2606.0,0.76735]
[1752003605327,3.00238062,2606.1,2606.0,1.44675]
[1752003605532,3.76970062,2606.1,2606.0,0.76735]
[1752003605828,3.00238062,2606.1,2606.0,0.76735]
[1752003606031,3.00238062,2606.1,2606.0,1.44675]
[1752003606237,3.00238062,2606.1,2606.0,0.76735]
[1752003606437,2.45032,2606.1,2606.0,0.76735]
[1752003606638,3.76970062,2606.1,2606.0,0.76735]
[1752003607839,3.00238062,2606.1,2606.0,0.76735]
[1752003608234,3.76970062,2606.1,2606.0,0.76735]
[1752003611040,0.76738,2606.0,2605.9,0.76736]
[1752003611234,2.45038,2606.0,2605.9,0.76736]
[1752003611434,2.45038,2606.0,2605.9,1.44676]
[1752003612437,2.45038,2606.0,2605.9,0.6794]
[1752003612644,2.45038,2606.0,2605.9,1.44678]
[1752003613138,2.45038,2606.0,2605.9,0.6794]
[1752003613344,0.76738,2605.9,2605.8,0.76739]
[1752003613544,1.45988,2605.9,2605.8,0.76739]
[1752003613742,2.45038,2605.9,2605.8,0.76739]
[1752003614342,2.45038,2605.9,2605.8,1.44679]
[1752003615044,2.08676062,2605.9,2605.8,0.76739]
[1752003615246,3.76976062,2605.9,2605.8,0.76739]
[1752003618147,0.76747,2605.6,2605.5,3.97526]
[1752003618347,3.00238062,2605.6,2605.5,4.65466]
[1752003618548,3.76985062,2605.6,2605.5,3.97526]
[1752003618948,3.76985062,2605.6,2605.5,4.65466]
[1752003619845,3.00238062,2605.6,2605.5,4.65466]
[1752003620244,0.76749,2605.5,2605.4,0.6731]
[1752003620444,2.38639,2605.5,2605.4,1.44062]
[1752003621039,2.38639,2605.5,2605.4,1.3128]
[1752003621250,0.76752,2605.4,2605.3,0.76755]
[1752003621445,0.76755,2605.3,2605.2,1.45817]
[1752003621645,1.39595,2605.3,2605.2,1.45817]
[1752003621851,0.6284,2605.3,2605.2,2.09787]
[1752003622539,1.39595,2605.3,2605.2,2.09787]
[1752003622747,2.41665,2605.3,2605.2,1.3303]
[1752003622946,0.76763,2605.1,2605.0,0.76763]
[1752003623241,3.73611062,2605.1,2605.0,1.40733]
[1752003623444,0.76765,2605.0,2604.9,0.76765]
[1752003623646,1.78835,2605.0,2604.9,0.76767]
[1752003623852,2.41675,2605.0,2604.9,1.40737]
[1752003624051,0.76767,2604.9,2604.8,0.654]
[1752003624353,3.73615062,2604.9,2604.8,1.2937]
[1752003624545,3.73615062,2604.9,2604.8,0.654]
[1752003624843,3.73615062,2604.9,2604.5,3.2078]
[1752003624844,2.96848062,2604.9,2604.5,3.2078]
[1752003625044,2.08709062,2604.8,2604.7,0.76771]
[1752003625240,0.76773,2604.7,2604.5,4.62957]
[1752003625447,0.6284,2604.6,2604.5,4.62957]
[1752003625646,0.6284,2604.6,2604.5,5.26927]
[1752003625848,2.71554062,2604.6,2604.5,4.5015]
[1752003626043,1.94778062,2604.6,2604.5,3.97559]
[1752003626248,1.94778062,2604.6,2604.5,4.61529]
[1752003626550,2.96848062,2604.6,2604.5,4.61529]
[1752003627149,1.6491,2604.6,2604.5,4.61529]
[1752003627349,1.91875,2605.5,2604.6,1.91936]
[1752003627549,0.76764,2605.0,2604.9,0.76766]
[1752003628153,6.94391062,2605.1,2605.0,0.76764]
[1752003628449,6.17628062,2605.1,2605.0,0.76764]
[1752003628656,6.94389062,2605.1,2605.0,0.76764]
[1752003629355,6.17628062,2605.1,2605.0,0.76764]
[1752003629749,6.17628062,2605.1,2604.9,0.6397]
[1752003629750,0.76764,2605.0,2604.9,1.40735]
[1752003629956,8.21620062,2605.1,2605.0,0.76764]
[1752003635163,6.56710062,2605.1,2605.0,0.76764]
[1752003635365,8.21620062,2605.1,2605.0,0.76764]
[1752003636566,6.94390062,2605.1,2605.0,0.76764]
[1752003637266,0.6284,2605.1,2605.0,1.40734]
[1752003637455,1.0207,2605.6,2605.5,0.76749]
[1752003637664,3.13978559,2605.6,2605.5,0.76749]
[1752003637868,1.6491,2605.6,2605.5,0.76749]
[1752003638165,3.90701123,2605.6,2605.5,0.76749]
[1752003638365,2.41657,2605.6,2605.5,0.76749]
[1752003638666,0.76751,2605.5,2605.4,0.7675]